bitfinex/quotes_SOLUSD_20250717
["timestamp","ask_amount","ask_price","bid_price","bid_amount"]
[1752714356883,6.44502834,172.86,172.82,30.28]
[1752714357094,6.10265895,172.86,172.82,30.28]
[1752714357597,6.44511495,172.86,172.82,36.40265895]
[1752714357779,0.66,172.86,172.82,36.40265895]
[1752714357978,6.10265895,172.88,172.84,5.44265895]
[1752714358276,6.10265895,172.88,172.83,0.68]
[1752714358277,0.66,172.88,172.85,35.72265895]
[1752714358586,11.88575546,172.92,172.89,26.0]
[1752714358762,5.78294301,172.93,172.9,56.28]
[1752714358970,0.1,172.92,172.9,56.28]
[1752714359167,6.10265895,172.91,172.9,56.28]
[1752714359568,11.88601445,172.91,172.81,0.68]
[1752714359780,5.44265895,172.82,172.78,0.68]
[1752714359982,6.10265895,172.81,172.76,1.6504]
[1752714360293,6.4071,172.88,172.8,5.44265895]
[1752714360294,7.0671,172.88,172.8,5.44265895]
[1752714360595,5.44265895,172.9,172.87,26.0]
[1752714360798,11.22601445,172.91,172.88,56.26]
[1752714360981,5.7833555,172.91,172.88,56.26]
[1752714361183,6.10265895,172.9,172.88,26.0]
[1752714361383,0.66,172.9,172.89,30.26]
[1752714361587,0.66,172.9,172.88,26.0]
[1752714361783,5.78339571,172.91,172.89,30.26]
[1752714361990,0.66,172.9,172.89,30.26]
[1752714362594,5.81339571,172.91,172.89,30.26]
[1752714362804,6.47339571,172.91,172.89,30.26]
[1752714363309,0.66,172.9,172.85,30.26]
[1752714363491,5.78536303,172.85,172.84,56.26]
[1752714363991,11.88802198,172.85,172.84,56.26]
[1752714364186,11.88802198,172.85,172.84,30.26]
[1752714364499,0.66,172.89,172.84,35.70265895]
[1752714364684,6.10265895,172.89,172.85,5.44265895]
[1752714365000,6.10265895,172.89,172.86,30.26]
[1752714365184,0.66,172.89,172.86,30.26]
[1752714365378,5.78368999,172.9,172.86,30.26]
[1752714365590,11.9160968,172.91,172.86,62.38265895]
[1752714365908,6.47343785,172.91,172.87,5.44265895]
[1752714366197,5.81337838,172.91,172.88,30.26]
[1752714366576,0.03,172.91,172.88,30.26]
[1752714366783,0.03,172.91,172.9,26.0]
[1752714367006,0.03,172.91,172.9,56.26]
[1752714367204,0.03,172.91,172.9,64.96207605]
[1752714367516,0.03,172.91,172.9,230.04676002]
[1752714369604,0.03,172.91,172.9,235.83045001]
[1752714369984,0.03,172.91,172.9,227.80837396]
[1752714370186,0.03,172.91,172.9,235.83045001]
[1752714370587,0.03,172.91,172.9,278.60252606]
[1752714370805,0.03,172.91,172.9,227.80837396]
[1752714371015,0.03,172.91,172.9,235.83045001]
[1752714371599,0.03,172.91,172.9,230.04676002]
[1752714371788,0.03,172.91,172.9,199.78676002]
[1752714372126,0.03,172.91,172.9,230.02676002]
[1752714375312,0.03,172.91,172.9,235.81045001]
[1752714376415,0.03,172.91,172.9,278.58252606]
[1752714378817,0.1,172.92,172.91,199.80468397]
[1752714378992,0.1,172.92,172.91,214.88196002]
[1752714379196,0.1,172.95,172.94,42.78468397]
[1752714379391,0.1,172.95,172.94,229.29676002]
[1752714379635,0.1,172.95,172.94,229.97676002]
[1752714380223,0.1,172.95,172.94,264.72676002]
[1752714380513,0.03,172.97,172.95,51.53468397]
[1752714380715,0.03,172.97,172.96,112.94844364]
[1752714380924,0.03,172.97,172.96,261.89844364]
[1752714381122,8.02207605,173.07,172.99,60.75]
[1752714381421,0.66,173.07,173.03,26.0]
[1752714381627,8.68207605,173.06,173.04,30.22]
[1752714381823,8.68207605,173.05,173.03,26.0]
[1752714381996,8.02207605,173.04,173.03,26.0]
[1752714382196,8.68207605,173.05,173.03,56.22]
[1752714382403,0.66,173.05,173.03,56.22]
[1752714382615,6.43831471,173.07,173.03,56.22]
[1752714382930,14.46039076,173.07,173.03,56.22]
[1752714383115,14.46039076,173.07,173.03,64.24207605]
[1752714383503,13.80039076,173.07,173.03,64.92207605]
[1752714383703,8.68207605,173.06,173.03,56.22]
[1752714384112,0.66,173.06,173.03,56.22]
[1752714384313,5.77831471,173.07,173.03,64.90207605]
[1752714384500,5.77767506,173.08,173.03,64.90207605]
[1752714384712,8.83207605,173.09,173.04,17.44468397]
[1752714385023,14.6095045,173.09,173.05,38.24207605]
[1752714385215,0.1,173.09,173.08,26.0]
[1752714385415,0.1,173.09,173.08,56.2]
[1752714386621,0.1,173.09,173.07,8.02207605]
[1752714386817,0.1,173.09,173.08,30.2]
[1752714387327,0.1,173.09,173.08,47.64468397]
[1752714387510,0.1,173.09,173.08,53.04850592]
[1752714388524,0.1,173.09,173.08,46.98468397]
[1752714388708,0.1,173.09,173.06,0.66]
[1752714388918,0.1,173.09,173.08,26.0]
[1752714389312,11.99116321,173.09,173.04,6.06382195]
[1752714389626,11.99116321,173.09,173.08,26.0]
[1752714389831,11.99116321,173.09,173.08,56.2]
[1752714390605,0.1,173.09,173.08,56.2]
[1752714391236,0.1,173.09,173.08,56.86]
[1752714391732,0.1,173.09,173.08,62.26382195]
[1752714392309,0.1,173.09,173.08,84.82618098]
[1752714392514,0.1,173.09,173.08,79.04850592]
[1752714392710,0.1,173.09,173.08,78.38850592]
[1752714392910,0.1,173.09,173.08,80.98894628]
[1752714393631,0.1,173.09,173.08,72.98468397]
[1752714393849,0.1,173.09,173.08,80.98894628]
[1752714394007,0.1,173.09,173.08,72.98468397]
[1752714394208,0.1,173.09,173.08,80.98894628]
[1752714394712,0.1,173.09,173.08,81.64894628]
[1752714395416,0.1,173.09,173.08,87.42662134]
[1752714397445,0.1,173.09,173.08,43.44468397]
[1752714397630,0.1,173.09,173.08,81.62894628]
[1752714397953,0.1,173.09,173.08,26.0]
[1752714398159,13.88160357,173.09,173.08,30.18]
[1752714398529,14.59160357,173.09,173.08,30.18]
[1752714399722,8.10426231,173.09,173.08,30.18]
[1752714399934,0.1,173.09,173.08,30.18]
[1752714400250,8.10426231,173.09,173.08,30.18]
[1752714400546,0.1,173.09,173.08,30.18]
[1752714401734,0.1,173.09,173.08,54.96894628]
[1752714401929,0.1,173.09,173.08,61.40662134]
[1752714402664,8.10426231,173.09,173.08,30.18]
[1752714402833,8.10426231,173.09,173.08,46.96468397]
[1752714403039,0.1,173.09,173.08,46.96468397]
[1752714403236,0.1,173.09,173.08,30.18]
[1752714403636,8.10426231,173.09,173.07,26.0]
[1752714403951,6.58737913,173.09,173.08,30.18]
[1752714404134,8.81426231,173.09,173.08,30.18]
[1752714405270,8.10426231,173.09,173.08,30.18]
[1752714405647,8.10426231,173.09,173.08,56.18]
[1752714406943,13.88160357,173.09,173.08,56.18]
[1752714407259,14.59160357,173.09,173.08,56.18]
[1752714407434,14.59160357,173.09,173.01,0.66]
[1752714407634,8.00426231,173.02,173.0,16.78468397]
[1752714407932,0.71,173.02,173.01,30.18]
[1752714408130,0.71,173.02,172.97,162.80560664]
[1752714408131,8.71426231,173.02,172.97,0.06]
[1752714408364,8.00426231,172.99,172.97,0.06]
[1752714408657,8.00426231,172.99,172.98,46.96468397]
[1752714409236,8.00426231,172.99,172.98,30.18]
[1752714409466,1.538,173.04,172.98,46.96468397]
[1752714409761,8.00426231,173.01,172.98,46.96468397]
[1752714410056,8.00426231,173.01,173.0,26.0]
[1752714410240,0.71,173.06,173.0,56.84]
[1752714410560,8.00426231,173.04,173.0,56.84]
[1752714410868,0.71,173.03,173.0,56.18]
[1752714411159,8.00426231,173.02,173.0,56.18]
[1752714411339,0.71,173.05,173.0,56.18]
[1752714411340,8.00426231,173.03,173.0,56.18]
[1752714411536,5.77870965,173.05,173.04,26.0]
[1752714411856,13.78297196,173.05,173.04,26.0]
[1752714412340,14.49297196,173.05,173.03,30.18]
[1752714412542,8.71426231,173.04,173.03,30.18]
[1752714412741,8.71426231,173.04,173.02,30.18]
[1752714412941,8.71426231,173.03,173.01,56.18]
[1752714413169,8.71426231,173.02,173.01,30.18]
[1752714413336,5.78001271,173.01,172.99,30.18]
[1752714413653,5.78001271,173.01,172.99,56.18]
[1752714413654,8.00426231,173.0,172.99,56.18]
[1752714414080,8.68426231,173.0,172.99,56.18]
[1752714414244,14.46460913,173.0,172.99,30.18]
[1752714414644,14.46460913,173.0,172.99,56.18]
[1752714414946,14.46460913,173.0,172.99,26.0]
[1752714415251,8.00426231,173.0,172.99,26.0]
[1752714415461,13.78460913,173.0,172.99,26.0]
[1752714416043,8.00426231,173.0,172.99,26.0]
[1752714416263,13.78460913,173.0,172.99,26.0]
[1752714417054,14.46460913,173.0,172.99,26.0]
[1752714417960,13.78460913,173.0,172.99,26.0]
[1752714418165,0.68,173.05,173.02,26.0]
[1752714418358,5.77934462,173.03,173.02,56.18]
[1752714418551,14.46360693,173.03,173.02,26.0]
[1752714419963,13.78336698,173.04,173.02,26.0]
[1752714420351,8.00426231,173.03,173.02,26.0]
[1752714420650,13.78304692,173.05,173.02,26.0]
[1752714420850,13.78304692,173.05,173.0,8.69426231]
[1752714420851,13.78304692,173.05,173.03,56.18]
[1752714421258,5.77878461,173.05,173.03,56.18]
[1752714421668,13.78261109,173.06,173.03,56.18]
[1752714421863,8.00426231,173.05,173.03,56.18]
[1752714422760,13.78300506,173.05,173.03,56.18]
[1752714422966,8.00426231,173.04,173.03,56.18]
[1752714423668,8.68426231,173.04,173.02,26.0]
[1752714423866,8.68426231,173.03,172.97,0.06]
[1752714424071,8.00426231,173.0,172.98,30.18]
[1752714424250,8.00426231,173.0,172.99,26.0]
[1752714424969,5.77972222,173.02,172.98,30.18]
[1752714425170,8.00426231,173.01,173.0,26.0]
[1752714425352,8.00426231,173.01,173.0,30.18]
[1752714425557,8.68426231,173.01,172.99,30.18]
[1752714425857,8.00426231,173.0,172.99,56.18]
[1752714426046,8.00426231,173.0,172.99,26.0]
[1752714426856,14.44647629,173.06,172.99,26.0]
[1752714426857,5.77867668,173.05,173.01,26.0]
[1752714427047,8.00426231,173.03,173.01,56.16]
[1752714427356,14.46260276,173.07,173.05,26.0]
[1752714427553,13.78260276,173.07,173.05,56.18]
[1752714427942,8.00426231,173.06,173.05,56.18]
[1752714429080,8.00426231,173.06,172.98,6.0001]
[1752714429081,24.73108397,173.05,172.9,0.06]
[1752714429252,8.00426231,172.91,172.9,0.06]
[1752714429454,8.00426231,173.0,172.9,8.75426231]
[1752714429666,8.00426231,172.94,172.93,26.0]
[1752714429991,0.68,172.99,172.93,26.0]
[1752714429992,0.68,172.99,172.93,56.85]
[1752714430149,8.00426231,172.96,172.93,56.85]
[1752714430350,8.00426231,172.96,172.93,30.85]
[1752714430550,8.00426231,172.95,172.93,30.85]
[1752714430758,8.00426231,172.94,172.93,30.16]
[1752714431043,8.00426231,172.95,172.93,56.16]
[1752714431245,8.00426231,172.94,172.93,56.16]
[1752714432480,8.00426231,172.95,172.93,56.16]
[1752714433177,5.78034682,173.0,172.96,26.0]
[1752714433373,8.00426231,172.97,172.96,56.16]
[1752714434953,13.78561167,172.97,172.96,56.16]
[1752714435168,8.00426231,172.97,172.96,56.16]
[1752714435569,13.78530423,172.98,172.96,56.16]
[1752714435788,8.00426231,172.97,172.96,56.16]
[1752714437065,13.78561167,172.97,172.96,56.16]
[1752714439786,5.78134936,172.97,172.96,56.16]
[1752714440163,13.78561167,172.97,172.96,56.16]
[1752714441379,14.46561167,172.97,172.96,26.0]
[1752714441961,13.78561167,172.97,172.96,26.0]
[1752714444186,14.44561167,172.97,172.96,26.0]
[1752714445086,6.44134936,172.97,172.96,26.0]
[1752714445290,14.44561167,172.97,172.96,26.0]
[1752714445878,13.78561167,172.97,172.96,26.0]
[1752714446686,13.78561167,172.97,172.96,26.71]
[1752714446986,13.81561167,172.97,172.96,56.87]
[1752714447181,13.81561167,172.97,172.96,56.22]
[1752714447888,0.03,172.97,172.96,56.22]
[1752714448091,0.03,172.97,172.96,56.87]
[1752714449890,8.00426231,173.04,172.96,88.9431299]
[1752714450091,8.00426231,173.04,173.02,26.0]
[1752714450275,8.00426231,173.05,173.03,30.16]
[1752714451581,20.88303113,173.07,173.03,30.16]
[1752714451582,5.77901063,173.04,173.03,30.16]
[1752714451787,5.80901063,173.04,173.03,30.16]
[1752714452791,5.80901063,173.04,173.03,30.81]
[1752714453893,0.03,173.04,173.03,30.81]
[1752714454801,0.03,173.04,173.03,179.11]
[1752714455202,0.03,173.04,173.03,187.11426231]
[1752714456388,0.03,173.04,173.03,179.11]
[1752714456588,8.03426231,173.04,173.03,148.3]
[1752714456901,8.03426231,173.04,173.03,178.46]
[1752714457680,0.03,173.04,173.03,178.46]
[1752714457895,8.03426231,173.04,173.03,178.46]
[1752714458390,0.03,173.04,173.03,209.11]
[1752714458986,0.03,173.04,173.03,217.11426231]
[1752714459193,0.03,173.04,173.03,233.89894628]
[1752714459698,0.03,173.04,173.03,233.25192859]
[1752714461088,0.03,173.04,173.03,235.47684628]
[1752714461294,13.88163741,173.09,173.07,26.0]
[1752714461491,13.88163741,173.09,173.08,30.14]
[1752714462392,13.88163741,173.09,173.08,60.14]
[1752714462593,5.8773751,173.09,173.08,60.14]
[1752714463298,0.1,173.09,173.08,60.79]
[1752714464209,0.1,173.09,173.08,60.14]
[1752714464402,5.87734126,173.09,173.08,60.14]
[1752714464601,13.88160357,173.09,173.08,60.14]
[1752714464907,0.1,173.09,173.08,60.79]
[1752714466792,0.1,173.09,173.08,85.57894628]
[1752714467109,0.1,173.09,173.08,88.75518322]
[1752714467286,0.1,173.09,173.08,237.05518322]
[1752714470686,0.1,173.09,173.08,244.99888322]
[1752714471186,0.03,173.12,173.11,42.78468397]
[1752714471516,0.03,173.12,173.11,226.60750816]
[1752714471828,0.03,173.12,173.11,233.03418195]
[1752714472192,0.03,173.12,173.11,263.03418195]
[1752714472799,0.03,173.12,173.11,251.85468397]
[1752714473001,0.03,173.12,173.11,257.25750816]
[1752714473815,0.03,173.12,173.11,251.85468397]
[1752714473997,0.03,173.12,173.11,257.25750816]
[1752714474200,0.03,173.12,173.11,251.85468397]
[1752714474515,5.87534209,173.15,173.14,26.0]
[1752714474697,11.27816628,173.15,173.14,56.12]
[1752714475306,11.27816628,173.15,173.14,86.12]
[1752714475808,0.1,173.15,173.14,86.12]
[1752714476205,5.8753393,173.15,173.14,86.12]
[1752714478594,11.97816349,173.15,173.14,30.0]
[1752714478792,6.5753393,173.15,173.14,30.0]
[1752714479021,11.97816349,173.15,173.14,30.0]
[1752714480421,11.97816349,173.15,173.13,30.0]
[1752714480615,6.47567286,173.14,173.13,30.0]
[1752714480812,11.87849705,173.14,173.06,148.3]
[1752714481118,5.40282419,173.07,173.02,0.71]
[1752714481302,5.40282419,173.03,173.02,148.3]
[1752714481509,5.40282419,173.03,173.02,178.42]
[1752714481709,0.7,173.09,173.05,26.0]
[1752714482023,5.40282419,173.06,173.05,56.12]
[1752714482592,5.77700751,173.1,173.05,56.83]
[1752714482811,8.0941,173.13,173.05,56.83]
[1752714482812,0.7,173.13,173.09,26.0]
[1752714483013,5.40282419,173.12,173.1,30.1]
[1752714483620,5.40282419,173.13,173.1,30.81]
[1752714484118,5.40282419,173.13,173.11,0.71]
[1752714484327,5.40282419,173.13,173.12,30.1]
[1752714485319,5.87541214,173.15,173.12,30.1]
[1752714485600,5.40282419,173.14,173.12,56.81]
[1752714485799,5.40282419,173.14,173.12,56.1]
[1752714486723,11.17869411,173.14,173.12,56.1]
[1752714486926,5.40282419,173.13,173.12,56.1]
[1752714487423,6.10282419,173.13,173.12,56.1]
[1752714487607,5.40282419,173.13,173.12,56.1]
[1752714487810,11.17869411,173.14,173.12,56.1]
[1752714488824,5.40282419,173.13,173.12,26.0]
[1752714489023,5.77586992,173.14,173.12,56.1]
[1752714489205,11.17869411,173.14,173.12,56.1]
[1752714489604,5.77586992,173.14,173.12,56.1]
[1752714489805,0.1,173.15,173.13,30.81]
[1752714490305,5.50282419,173.15,173.13,30.1]
[1752714490509,5.40282419,173.14,173.13,30.1]
[1752714491045,11.27832245,173.15,173.13,30.1]
[1752714491518,0.1,173.15,173.13,30.1]
[1752714491716,0.1,173.15,173.13,30.81]
[1752714491717,5.50282419,173.15,173.13,30.81]
[1752714492113,0.1,173.15,173.13,30.81]
[1752714492901,0.1,173.15,173.13,30.1]
[1752714493103,0.1,173.15,173.14,0.71]
[1752714494323,5.50282419,173.15,173.13,30.1]
[1752714494528,5.40282419,173.14,173.13,30.1]
[1752714495613,5.87538221,173.15,173.13,30.1]
[1752714495807,5.40282419,173.14,173.13,30.1]
[1752714496209,5.87538221,173.15,173.13,30.1]
[1752714496210,0.1,173.15,173.13,30.81]
[1752714496411,5.50282419,173.15,173.13,30.81]
[1752714497325,5.50282419,173.15,173.06,0.06]
[1752714497326,6.10282419,173.14,173.06,0.06]
[1752714497530,10.80564838,173.07,173.06,30.06]
[1752714497727,11.50564838,173.07,173.06,30.06]
[1752714498326,11.50564838,173.07,173.02,26.0]
[1752714498633,5.40282419,173.03,173.01,30.1]
[1752714498839,5.40282419,173.02,172.97,0.71]
[1752714499131,5.40282419,173.02,172.96,1.6777]
[1752714499132,5.40282419,172.98,172.96,0.06]
[1752714499428,5.40282419,172.97,172.96,26.06]
[1752714499733,5.40282419,172.97,172.96,0.06]
[1752714499918,5.40282419,172.97,172.96,26.06]
[1752714500122,5.40282419,172.97,172.96,56.16]
[1752714500307,11.18386766,172.98,172.96,56.16]
[1752714500512,11.18386766,172.98,172.96,56.87]
[1752714500711,11.18386766,172.98,172.96,30.87]
[1752714500914,13.79898135,172.98,172.97,26.0]
[1752714501428,13.79898135,172.98,172.97,56.1]
[1752714502821,5.78104347,172.98,172.97,56.1]
[1752714503028,13.79898135,172.98,172.97,56.1]
[1752714506018,13.79898135,172.98,172.96,0.06]
[1752714506251,8.01793788,172.97,172.96,0.06]
[1752714506452,8.01793788,172.97,172.96,56.16]
[1752714507230,13.79928724,172.97,172.96,56.16]
[1752714509336,8.01793788,172.97,172.96,56.86]
[1752714509732,8.01793788,172.97,172.96,56.16]
[1752714511021,5.78110738,172.98,172.96,56.16]
[1752714511235,5.78001271,173.01,172.99,26.0]
[1752714511542,8.01793788,173.0,172.99,26.0]
[1752714511921,8.73793788,173.0,172.98,30.1]
[1752714512129,5.78001271,173.01,172.98,30.1]
[1752714512130,20.2300445,173.01,172.98,30.1]
[1752714512316,8.01793788,172.99,172.98,30.1]
[1752714513224,13.79861884,172.99,172.98,30.1]
[1752714514840,5.78068096,172.99,172.98,30.1]
[1752714515030,13.79861884,172.99,172.98,30.1]
[1752714515229,5.78068096,172.99,172.98,30.1]
[1752714515536,13.79832373,173.0,172.98,56.8]
[1752714515740,13.79832373,173.0,172.99,0.7]
[1752714515942,5.78038585,173.0,172.99,0.7]
[1752714516132,13.79832373,173.0,172.99,0.7]
[1752714516332,5.77967864,173.02,172.99,0.7]
[1752714516537,8.01793788,173.01,173.0,56.8]
[1752714517145,8.01793788,173.02,173.0,56.8]
[1752714517449,8.01793788,173.02,173.01,0.7]
[1752714517644,5.77834277,173.06,173.01,0.7]
[1752714517845,8.01793788,173.04,173.02,30.1]
[1752714518151,15.16557258,173.07,173.02,30.1]
[1752714518152,13.79602058,173.07,173.05,26.0]
[1752714518358,13.79602058,173.07,173.05,56.1]
[1752714518946,8.01793788,173.06,173.05,56.1]
[1752714519450,13.79628065,173.06,173.05,56.1]
[1752714520050,5.77834277,173.06,173.05,56.1]
[1752714520740,13.79628065,173.06,173.05,56.1]
[1752714521460,5.77834277,173.06,173.05,56.1]
[1752714521638,13.79628065,173.06,173.05,56.1]
[1752714521843,8.01793788,173.06,173.05,56.8]
[1752714522343,5.77734126,173.09,173.05,56.8]
[1752714522654,13.79527914,173.09,173.06,0.7]
[1752714522857,13.79527914,173.09,173.07,30.8]
[1752714523151,5.40488077,173.1,173.07,30.8]
[1752714523929,5.40488077,173.09,173.07,30.8]
[1752714524149,5.40488077,173.08,173.07,30.1]
[1752714525441,11.18255583,173.08,173.07,30.1]
[1752714526157,11.90255583,173.08,173.06,30.1]
[1752714526353,5.40488077,173.07,173.06,30.1]
[1752714526534,11.18288966,173.07,173.06,30.1]
[1752714527869,5.77800889,173.07,173.06,30.1]
[1752714528036,11.18288966,173.07,173.06,30.1]
[1752714528448,11.18288966,173.07,173.04,148.3]
[1752714528643,5.77800889,173.07,173.04,148.3]
[1752714528856,5.40488077,173.05,173.04,175.0]
[1752714529055,5.40488077,173.05,173.04,174.3]
[1752714529359,5.40488077,173.05,173.04,148.3]
[1752714529941,5.40488077,173.05,173.04,149.0]
[1752714530671,5.40488077,173.06,173.04,149.0]
[1752714530850,11.18328481,173.06,173.04,149.0]
[1752714531052,11.18328481,173.06,173.05,30.08]
[1752714531561,11.18328481,173.06,173.05,30.78]
[1752714532170,5.77840404,173.06,173.05,30.78]
[1752714532540,5.40488077,173.07,173.05,30.78]
[1752714533052,11.18276222,173.08,173.06,0.7]
[1752714533258,5.77788145,173.08,173.07,30.78]
[1752714533770,11.18276222,173.08,173.07,30.78]
[1752714533954,11.18276222,173.08,173.07,30.08]
[1752714534340,5.77788145,173.08,173.07,30.08]
[1752714534648,11.18276222,173.08,173.07,30.79]
[1752714534851,11.18276222,173.08,173.07,30.08]
[1752714535457,11.18276222,173.08,173.05,0.71]
[1752714535661,11.18276222,173.08,173.06,30.08]
[1752714535872,5.77788145,173.08,173.06,30.79]
[1752714536040,11.18276222,173.08,173.06,30.79]
[1752714536671,5.40488077,173.07,173.06,26.0]
[1752714536848,6.44788145,173.08,173.06,56.08]
[1752714537046,5.40488077,173.07,173.06,56.08]
[1752714537243,6.07488077,173.07,173.05,0.06]
[1752714537445,6.07488077,173.06,173.05,0.06]
[1752714537850,11.85322354,173.06,173.05,0.06]
[1752714538665,11.18322354,173.06,173.05,0.06]
[1752714539244,11.85322354,173.06,173.05,0.06]
[1752714543475,5.77834277,173.06,173.05,0.06]
[1752714543642,5.40488077,173.06,173.05,0.06]
[1752714543842,11.18296128,173.07,173.05,0.77]
[1752714544167,5.40488077,173.07,173.06,0.71]
[1752714544470,11.21262682,173.08,173.06,0.71]
[1752714545267,5.40488077,173.07,173.05,56.14]
[1752714545440,5.40488077,173.07,173.05,56.85]
[1752714545644,5.43488077,173.08,173.06,0.71]
[1752714546245,0.03,173.08,173.07,0.71]
[1752714546849,5.80767506,173.08,173.07,0.71]
[1752714547052,11.21255583,173.08,173.05,56.85]
[1752714547269,5.80767506,173.08,173.06,26.0]
[1752714547461,5.40488077,173.07,173.06,26.0]
[1752714548761,11.18288966,173.07,173.06,26.0]
[1752714549380,11.18288966,173.07,173.06,26.71]
[1752714549561,11.18288966,173.07,173.06,56.79]
[1752714550076,5.77800889,173.07,173.06,56.08]
[1752714550366,11.18288966,173.07,173.06,56.08]
[1752714551872,5.77800889,173.07,173.06,56.08]
[1752714552182,11.18288966,173.07,173.06,56.08]
[1752714553181,17.25777043,173.07,173.05,0.06]
[1752714553391,6.07488077,173.06,173.05,0.06]
[1752714553674,5.40488077,173.06,173.05,0.06]
[1752714554081,6.07488077,173.06,173.05,0.06]
[1752714554655,11.85322354,173.06,173.05,0.06]
[1752714554864,11.18322354,173.06,173.05,0.06]
[1752714555571,11.85322354,173.06,173.05,0.06]
[1752714555778,11.85322354,173.06,173.05,1e-08]
[1752714555974,11.85322354,173.06,172.99,178.42]
[1752714556286,0.67,173.05,172.99,56.12]
[1752714556471,5.40488077,173.01,172.99,56.83]
[1752714556666,11.18522759,173.0,172.99,56.12]
[1752714557073,11.18522759,173.0,172.99,26.06]
[1752714557390,11.18522759,173.0,172.99,0.06]
[1752714557591,11.18522759,173.0,172.99,26.06]
[1752714558204,11.85522759,173.0,172.96,0.06]
[1752714558492,5.40488077,172.97,172.96,0.06]
[1752714558682,11.18623013,172.97,172.96,26.06]
[1752714559187,11.18623013,172.97,172.96,0.77]
[1752714559373,11.18623013,172.97,172.96,26.77]
[1752714559691,11.18623013,172.97,172.96,26.06]
[1752714560068,11.85623013,172.97,172.96,0.06]
[1752714561188,11.85623013,172.97,172.94,0.2]
[1752714561380,5.40488077,172.95,172.94,0.2]
[1752714562475,5.78134936,172.97,172.94,0.2]
[1752714562682,5.40488077,172.95,172.94,0.91]
[1752714563598,11.18689869,172.95,172.94,0.91]
[1752714563793,11.18689869,172.95,172.94,0.2]
[1752714564211,11.84689869,172.95,172.94,0.2]
[1752714567377,11.84689869,172.95,172.94,1e-08]
[1752714567588,26.3019435,172.95,172.9,0.06]
[1752714567894,5.40488077,172.91,172.9,0.06]
[1752714568570,6.06488077,172.91,172.9,0.06]
[1752714569008,5.40488077,172.91,172.9,0.06]
[1752714569896,11.18823627,172.91,172.9,0.06]
[1752714570286,11.84823627,172.91,172.9,0.06]
[1752714570787,11.18823627,172.91,172.9,0.06]
[1752714571895,11.84823627,172.91,172.9,0.06]
[1752714572877,11.18823627,172.91,172.9,0.06]
[1752714577377,11.18823627,172.91,172.9,0.74]
[1752714577595,11.18823627,172.91,172.9,0.06]
[1752714578304,5.7833555,172.91,172.9,0.06]
[1752714578483,11.18823627,172.91,172.9,0.74]
[1752714579184,11.18823627,172.91,172.9,0.06]
[1752714582100,5.40488077,172.92,172.9,26.74]
[1752714582685,5.40488077,172.92,172.91,0.68]
[1752714583302,5.7833555,172.91,172.9,0.06]
[1752714583493,11.18823627,172.91,172.9,0.06]
[1752714586293,5.7833555,172.91,172.9,0.06]
[1752714586492,11.18823627,172.91,172.9,0.06]
[1752714587406,16.78468397,172.89,172.83,0.06]
[1752714587603,5.40488077,172.84,172.83,0.06]
[1752714587789,0.66,172.88,172.83,0.06]
[1752714587995,5.40488077,172.84,172.83,0.74]
[1752714588299,5.40488077,172.84,172.83,0.06]
[1752714589687,5.78502834,172.86,172.83,0.06]
[1752714589886,5.40488077,172.84,172.83,0.06]
[1752714591903,11.19057852,172.84,172.83,0.06]
[1752714592496,11.19057852,172.84,172.83,0.74]